bitfinex-derivatives/quotes_BTCF0:USTF0_20250309
["timestamp","ask_amount","ask_price","bid_price","bid_amount"]
[1741519276310,0.3608,84892.0,84878.0,0.08228]
[1741519276513,0.3608,84900.0,84878.0,0.08228]
[1741519276816,0.3608,84900.0,84887.0,0.3608]
[1741519277021,0.3608,84900.0,84888.0,0.28976]
[1741519277603,0.3608,84892.0,84888.0,0.28976]
[1741519277809,0.071,84891.0,84888.0,0.28976]
[1741519278218,0.0298,84890.0,84886.0,0.00017668]
[1741519278618,0.071,84889.0,84886.0,0.00017668]
[1741519279020,0.0298,84888.0,84886.0,0.00017668]
[1741519279512,0.071,84887.0,84886.0,0.00017668]
[1741519280415,0.101,84887.0,84886.0,0.00017668]
[1741519281116,0.071,84887.0,84886.0,0.00017668]
[1741519284718,0.4318,84887.0,84886.0,0.00017668]
[1741519286616,0.3608,84887.0,84886.0,0.00017668]
[1741519287016,0.3608,84895.0,84886.0,0.00017668]
[1741519288215,0.3608,84887.0,84886.0,0.00017668]
[1741519289425,0.3608,84895.0,84886.0,0.00017668]
[1741519289725,0.3608,84895.0,84887.0,0.3608]
[1741519289922,0.3608,84895.0,84888.0,0.31178]
[1741519290120,0.3608,84895.0,84889.0,0.20744]
[1741519290711,0.3608,84903.0,84889.0,0.20744]
[1741519291117,0.3608,84903.0,84891.0,0.3608]
[1741519293517,0.3608,84903.0,84892.0,0.08228]
[1741519293918,0.3608,84903.0,84893.0,0.1515]
[1741519294124,0.0806,84913.0,84893.0,0.1515]
[1741519294310,0.0806,84913.0,84894.0,0.08228]
[1741519298126,0.0583,84912.0,84894.0,0.08228]
[1741519298522,0.0781,84911.0,84894.0,0.08228]
[1741519298915,0.3608,84907.0,84894.0,0.08228]
[1741519299125,0.0781,84906.0,84894.0,0.08228]
[1741519299329,0.3608,84914.0,84894.0,0.08228]
[1741519299524,0.0781,84913.0,84894.0,0.08228]
[1741519300431,0.3608,84908.0,84894.0,0.08228]
[1741519300726,0.0781,84907.0,84894.0,0.08228]
[1741519300927,0.3608,84908.0,84894.0,0.08228]
[1741519301326,0.0789,84916.0,84894.0,0.08228]
[1741519302126,0.3608,84906.0,84894.0,0.08228]
[1741519302329,0.0789,84905.0,84894.0,0.08228]
[1741519303021,0.3608,84917.0,84894.0,0.08228]
[1741519303328,0.0789,84916.0,84894.0,0.08228]
[1741519304526,0.0583,84915.0,84895.0,0.08228]
[1741519304923,0.0768,84914.0,84895.0,0.08228]
[1741519305123,0.3608,84910.0,84895.0,0.08228]
[1741519305325,0.0768,84909.0,84895.0,0.08228]
[1741519305831,0.1351,84909.0,84895.0,0.08228]
[1741519306023,0.0768,84909.0,84895.0,0.08228]
[1741519306437,0.0768,84909.0,84897.0,0.3608]
[1741519306729,0.3608,84910.0,84898.0,0.1525]
[1741519307523,0.3608,84910.0,84898.0,0.16548869]
[1741519307923,0.1376,84909.0,84898.0,0.16548869]
[1741519308419,0.1376,84909.0,84899.0,0.08224]
[1741519308625,0.3608,84903.0,84898.0,0.16548869]
[1741519308931,0.1376,84902.0,84898.0,0.16548869]
[1741519309932,0.1376,84902.0,84898.0,0.09128869]
[1741519310536,0.1376,84902.0,84899.0,0.0785]
[1741519311140,0.1376,84902.0,84900.0,0.0754]
[1741519312235,0.1376,84902.0,84901.0,0.0785]
[1741519315143,0.1376,84902.0,84900.0,0.0754]
[1741519315544,0.1376,84902.0,84873.0,0.2074]
[1741519315741,0.3608,84894.0,84890.0,0.0761]
[1741519315941,0.1312,84893.0,84890.0,0.0761]
[1741519316541,0.1312,84893.0,84890.0,0.1518]
[1741519317344,0.1312,84893.0,84890.0,0.0761]
[1741519317537,0.0746,84892.0,84884.0,0.00887431]
[1741519317733,0.3608,84887.0,84885.0,0.0802]
[1741519317939,0.3608,84887.0,84873.0,0.2074]
[1741519318139,0.3608,84887.0,84874.0,0.0802]
[1741519318447,0.4925,84887.0,84875.0,0.08224]
[1741519319437,0.4925,84887.0,84882.0,0.01340161]
[1741519319642,0.4925,84887.0,84883.0,0.0793]
[1741519319844,0.437,84887.0,84883.0,0.0793]
[1741519320049,0.437,84887.0,84884.0,0.0735]
[1741519320751,0.4925,84887.0,84883.0,0.0793]
[1741519321647,0.4925,84887.0,84880.0,0.01323383]
[1741519322342,0.4925,84887.0,84881.0,0.0813]
[1741519322553,0.51924,84887.0,84882.0,0.0771]
[1741519323142,0.44304,84887.0,84882.0,0.0771]
[1741519323347,0.3608,84887.0,84882.0,0.15934]
[1741519323948,0.3608,84887.0,84882.0,0.0771]
[1741519324154,0.59304,84887.0,84872.0,0.00176706]
[1741519324457,0.3608,84873.0,84872.0,0.00176706]
[1741519324748,0.7216,84873.0,84872.0,0.00176706]
[1741519324941,0.7216,84873.0,84863.0,0.0131051]
[1741519325148,0.3608,84864.0,84863.0,0.0131051]
[1741519325444,0.44304,84864.0,84863.0,0.0131051]
[1741519325650,0.44304,84864.0,84860.0,0.00017668]
[1741519325850,0.1308,84863.0,84860.0,0.00017668]
[1741519327549,0.3608,84861.0,84860.0,0.00017668]
[1741519331046,0.44308,84861.0,84860.0,0.00017668]
[1741519331354,0.3608,84861.0,84860.0,0.00017668]
[1741519332653,0.3608,84861.0,84860.0,0.08245668]
[1741519336057,0.3608,84876.0,84860.0,0.08245668]
[1741519336251,0.3608,84876.0,84869.0,0.3608]
[1741519336464,0.3608,84876.0,84870.0,0.0786]
[1741519336653,0.3608,84876.0,84870.0,0.1523]
[1741519337663,0.3608,84876.0,84871.0,0.08228]
[1741519338156,0.3608,84876.0,84871.0,0.15908]
[1741519338861,0.3608,84876.0,84871.0,0.0768]
[1741519339056,0.08245668,84872.0,84871.0,0.0768]
[1741519339458,0.08738548,84872.0,84871.0,0.0768]
[1741519342660,0.08245668,84872.0,84871.0,0.0768]
[1741519343265,0.00017668,84872.0,84871.0,0.0768]
[1741519344062,0.10483355,84881.0,84871.0,0.2268]
[1741519344351,0.13943272,84885.0,84879.0,0.3608]
[1741519344565,0.13943272,84885.0,84880.0,0.15968]
[1741519345358,0.3608,84902.0,84880.0,0.37648]
[1741519345552,0.3608,84902.0,84889.0,0.3608]
[1741519345761,0.3608,84902.0,84889.0,0.44304]
[1741519346064,0.3608,84902.0,84889.0,0.45577027]
[1741519346466,0.3608,84902.0,84889.0,0.66325027]
[1741519346965,0.0753,84909.0,84889.0,0.66325027]
[1741519347166,0.0806,84908.0,84889.0,0.66325027]
[1741519347866,0.00491568,84907.0,84890.0,0.0778]
[1741519348167,0.00491568,84906.0,84890.0,0.0778]
[1741519348671,0.00491568,84906.0,84891.0,0.1534]
[1741519349063,0.0806,84905.0,84891.0,0.1534]
[1741519349866,0.17487979,84911.0,84897.0,0.3608]
[1741519350173,0.17487979,84911.0,84905.0,0.3608]
[1741519350470,0.17487979,84911.0,84906.0,0.31514]
[1741519350855,0.0782,84914.0,84906.0,0.31514]
[1741519352168,0.17487979,84922.0,84912.0,0.3608]
[1741519352371,0.17487979,84922.0,84913.0,0.16354]
[1741519352671,0.0814,84920.0,84913.0,0.23784]
[1741519354269,0.17487979,84922.0,84913.0,0.23784]
[1741519356765,0.0771,84926.0,84913.0,0.23784]
[1741519357273,0.0815,84925.0,84913.0,0.23784]
[1741519357463,0.0815,84925.0,84913.0,0.1556]
[1741519357663,0.0771,84924.0,84914.0,0.0822]
[1741519357865,0.0771,84924.0,84916.0,0.3608]
[1741519358077,0.0815,84923.0,84916.0,0.3608]
[1741519358566,0.0771,84922.0,84916.0,0.3608]
[1741519358977,0.0778,84921.0,84916.0,0.3608]
[1741519359576,0.0753,84920.0,84917.0,0.2423]
[1741519359962,0.0778,84919.0,84917.0,0.2423]
[1741519360471,0.0753,84918.0,84917.0,0.2423]
[1741519361267,0.3608,84929.0,84917.0,0.2423]
[1741519361476,0.1531,84928.0,84917.0,0.2423]
[1741519366670,0.1531,84928.0,84917.0,0.1601]
[1741519366869,0.3608,84919.0,84906.0,0.0822]
[1741519367072,0.1602,84918.0,84912.0,0.0757]
[1741519367573,0.0792,84917.0,84907.0,0.0757]
[1741519367777,0.0792,84917.0,84908.0,0.0822]
[1741519367972,0.1525,84916.0,84908.0,0.164]
[1741519368171,0.3608,84909.0,84903.0,0.0822]
[1741519368473,0.0759,84908.0,84903.0,0.0822]
[1741519368665,0.00491546,84907.0,84904.0,0.1622]
[1741519369266,0.0759,84908.0,84904.0,0.1622]
[1741519370471,0.0759,84908.0,84902.0,0.0822]
[1741519370672,0.0766,84907.0,84903.0,0.0804]
[1741519370874,0.0766,84907.0,84903.0,0.1486]
[1741519371067,0.074,84906.0,84903.0,0.1486]
[1741519372676,0.3608,84926.0,84903.0,0.1486]
[1741519372881,0.074,84917.0,84904.0,0.0813]
[1741519373269,0.074,84917.0,84915.0,0.3608]
[1741519373470,0.074,84917.0,84916.0,0.229]
[1741519373670,0.3608,84926.0,84916.0,0.229]
[1741519373873,0.0757,84925.0,84916.0,0.229]
[1741519374079,0.1482,84925.0,84916.0,0.229]
[1741519374472,0.00493195,84924.0,84916.0,0.229]
[1741519374867,0.0725,84923.0,84916.0,0.229]
[1741519376672,0.3608,84926.0,84916.0,0.229]
[1741519377074,0.0715,84925.0,84916.0,0.229]
[1741519383190,0.0715,84925.0,84916.0,0.5898]
[1741519383377,0.3608,84928.0,84916.0,0.5898]
[1741519383880,0.4356,84930.0,84916.0,0.5898]
[1741519384076,0.0748,84927.0,84916.0,0.5898]
[1741519384276,0.0748,84927.0,84916.0,0.5076]
[1741519384586,0.0748,84927.0,84917.0,0.0822]
[1741519385182,0.0748,84927.0,84918.0,0.0687]
[1741519385977,0.3608,84930.0,84918.0,0.0687]
[1741519387481,0.53567979,84930.0,84918.0,0.0687]
[1741519387685,0.18187979,84930.0,84918.0,0.0697]
[1741519388681,0.18187979,84930.0,84924.0,0.3608]
[1741519388883,0.18187979,84930.0,84925.0,0.2263]
[1741519389877,0.17251496,84930.0,84925.0,0.2263]
[1741519390679,0.20916452,84935.0,84925.0,0.2263]
[1741519390680,0.20916452,84935.0,84925.0,0.23915413]
[1741519390990,0.20916452,84935.0,84934.0,0.3608]
[1741519391285,0.0739,84948.0,84934.0,0.44296]
[1741519391479,0.0739,84948.0,84941.0,0.3608]
[1741519391680,0.0739,84948.0,84942.0,0.22256]
[1741519392486,0.0697,84944.0,84942.0,0.0695]
[1741519392688,0.0697,84943.0,84933.0,0.0738]
[1741519392891,0.0697,84943.0,84935.0,0.00017668]
[1741519393079,0.1418,84942.0,84935.0,0.00017668]
[1741519393588,0.3608,84939.0,84935.0,0.00017668]
[1741519393881,0.1418,84938.0,84935.0,0.00017668]
[1741519394082,0.1418,84938.0,84935.0,0.00117668]
[1741519394477,0.1418,84938.0,84936.0,0.0742]
[1741519394679,0.1418,84938.0,84937.0,0.0738]
[1741519394880,0.1418,84938.0,84936.0,0.0742]
[1741519395087,0.1418,84938.0,84935.0,0.00117668]
[1741519395474,0.1418,84938.0,84936.0,0.0741]
[1741519396182,0.1418,84938.0,84935.0,0.00117668]
[1741519396581,0.1418,84938.0,84935.0,0.00017668]
[1741519396781,0.1448,84938.0,84936.0,0.001]
[1741519397177,0.1418,84938.0,84935.0,0.00017668]
[1741519397384,0.1418,84938.0,84935.0,0.00417668]
[1741519399084,0.1418,84938.0,84936.0,0.0732]
[1741519399882,0.1418,84938.0,84935.0,0.00017668]
[1741519400077,0.0049337,84937.0,84935.0,0.00217668]
[1741519400491,0.0049337,84937.0,84936.0,0.1422]
[1741519400791,0.0049337,84937.0,84936.0,0.1442]
[1741519401091,0.0049337,84937.0,84935.0,0.00017668]
[1741519401295,7.352e-05,84939.0,84935.0,0.00217668]
[1741519402385,0.00500307,84938.0,84935.0,0.00217668]
[1741519402690,0.00500307,84938.0,84936.0,0.0677]
[1741519402892,0.00500307,84938.0,84936.0,0.002]
[1741519403082,0.00500307,84937.0,84936.0,0.002]
[1741519403278,0.00500307,84937.0,84935.0,0.00017668]
[1741519403486,0.00500307,84938.0,84935.0,0.00217668]
[1741519403887,0.00500307,84937.0,84936.0,0.002]
[1741519404391,0.00500307,84937.0,84935.0,0.00017668]
[1741519404691,0.00500307,84936.0,84935.0,0.00217668]
[1741519406390,0.00400307,84936.0,84935.0,0.00017668]
[1741519407278,0.00400307,84936.0,84935.0,0.00117668]
[1741519409794,0.00400307,84936.0,84918.0,0.22455846]
[1741519409795,0.15400307,84936.0,84918.0,0.22455846]
[1741519409990,0.3608,84921.0,84918.0,0.22455846]
[1741519410194,0.0702,84920.0,84918.0,0.22455846]
[1741519410395,0.0692,84920.0,84918.0,0.22455846]
[1741519410986,0.0692,84920.0,84918.0,0.23055846]
[1741519411186,0.0692,84920.0,84919.0,0.0701]
[1741519411389,0.00017668,84927.0,84919.0,0.1431]
[1741519413096,0.14035954,84920.0,84919.0,0.1431]
[1741519413303,0.14035954,84920.0,84919.0,0.1461]
[1741519414103,0.14035954,84920.0,84919.0,0.1431]
[1741519414291,0.14035954,84920.0,84919.0,0.1461]
[1741519416204,0.1378,84925.0,84919.0,0.1461]
[1741519416594,0.071,84925.0,84919.0,0.1431]
[1741519416795,0.071,84925.0,84920.0,0.0715]
[1741519417203,0.071,84925.0,84921.0,0.138]
[1741519418904,0.00496063,84924.0,84921.0,0.138]
[1741519419514,0.00496063,84923.0,84921.0,0.138]
[1741519420112,0.00496063,84923.0,84921.0,0.139]
[1741519420413,0.14336063,84922.0,84921.0,0.139]
[1741519420616,0.21606063,84922.0,84921.0,0.139]
[1741519422711,0.57686063,84922.0,84921.0,0.139]
[1741519423016,0.57686063,84922.0,84921.0,0.001]
[1741519424014,0.72686063,84922.0,84913.0,0.00176641]
[1741519424214,0.3608,84914.0,84913.0,0.00176641]
[1741519424412,0.66206,84914.0,84913.0,0.00176641]
[1741519424714,0.66702063,84914.0,84913.0,0.00176641]
[1741519424913,0.66602063,84914.0,84907.0,0.21169346]
[1741519425105,0.14246063,84913.0,84907.0,0.21169346]
[1741519425509,0.14146063,84913.0,84907.0,0.21169346]
[1741519425707,0.29146063,84913.0,84907.0,0.21169346]
[1741519425908,0.2191,84912.0,84907.0,0.21169346]
[1741519426114,0.5098,84908.0,84897.0,0.35103808]
[1741519426311,0.3608,84904.0,84897.0,0.35103808]
[1741519426512,0.5799,84904.0,84897.0,0.35103808]
[1741519426713,0.3608,84898.0,84897.0,0.35103808]
[1741519427013,0.66206,84898.0,84876.0,0.49054704]
[1741519427218,0.3608,84893.0,84889.0,0.00017668]
[1741519427714,0.5108,84893.0,84889.0,0.00017668]
[1741519428223,0.51576063,84893.0,84889.0,0.00017668]
[1741519428708,0.52861727,84893.0,84889.0,0.00017668]
[1741519429116,0.15006,84892.0,84889.0,0.00017668]
[1741519429720,0.00496063,84891.0,84889.0,0.00017668]
[1741519430115,0.4269,84890.0,84889.0,0.00017668]
[1741519430817,0.43186063,84890.0,84889.0,0.00017668]
[1741519432521,0.43386063,84890.0,84889.0,0.00017668]
[1741519434713,0.44262895,84890.0,84889.0,0.00017668]
[1741519434920,0.36606063,84890.0,84889.0,0.00017668]
[1741519435123,0.44822063,84890.0,84889.0,0.00017668]
[1741519435321,0.44922063,84890.0,84889.0,0.00017668]
[1741519436928,0.44622063,84890.0,84889.0,0.00017668]
[1741519437226,0.45122063,84890.0,84889.0,1.324e-05]
[1741519437426,0.29696063,84890.0,84889.0,1.324e-05]
[1741519437626,0.31122063,84890.0,84889.0,1.324e-05]
[1741519438523,0.30622063,84890.0,84889.0,1.324e-05]
[1741519438729,0.30922063,84890.0,84889.0,1.324e-05]
[1741519441429,0.37792063,84890.0,84889.0,1.324e-05]
[1741519442130,0.15882063,84890.0,84889.0,1.324e-05]
[1741519445732,0.00796063,84890.0,84889.0,1.324e-05]
[1741519446333,0.07646063,84890.0,84889.0,1.324e-05]
[1741519446635,0.14676063,84890.0,84889.0,1.324e-05]
[1741519447334,0.07646063,84890.0,84889.0,1.324e-05]
[1741519447524,0.43726063,84890.0,84889.0,1.324e-05]
[1741519448128,0.07646063,84890.0,84889.0,1.324e-05]
[1741519448326,0.43726063,84890.0,84889.0,1.324e-05]
[1741519449727,0.50576063,84890.0,84889.0,1.324e-05]
[1741519453334,0.50276063,84890.0,84889.0,1.324e-05]
[1741519453525,0.50676063,84890.0,84889.0,1.324e-05]
[1741519453926,0.72586063,84890.0,84889.0,1.324e-05]
[1741519454127,1.08666063,84890.0,84889.0,1.324e-05]
[1741519454421,1.29397147,84890.0,84889.0,1.324e-05]
[1741519454623,1.29397147,84890.0,84886.0,0.1958]
[1741519454930,1.14397147,84890.0,84886.0,0.1958]
[1741519455129,1.13997147,84890.0,84886.0,0.1898]
[1741519455532,0.00496063,84889.0,84886.0,0.1898]
[1741519455933,0.13696063,84888.0,84886.0,0.1898]
[1741519456232,0.00496063,84887.0,84886.0,0.1898]
[1741519456633,0.50836063,84887.0,84880.0,0.00017668]
[1741519456930,0.3608,84881.0,84880.0,0.00017668]
[1741519457236,0.63156,84881.0,84880.0,0.00017668]
[1741519457436,0.78652063,84881.0,84880.0,0.00017668]
[1741519458030,0.42572063,84881.0,84880.0,1.856e-05]
[1741519458334,1.36642063,84881.0,84880.0,1.856e-05]
[1741519459129,1.38178275,84881.0,84880.0,1.856e-05]
[1741519460232,1.23178275,84881.0,84880.0,1.856e-05]
[1741519461030,1.21642063,84881.0,84880.0,1.856e-05]
[1741519461432,1.85857536,84881.0,84880.0,1.856e-05]
[1741519461632,1.85857536,84881.0,84868.0,0.1364]
[1741519461633,1.85857536,84881.0,84868.0,0.07375022]
[1741519461839,0.3608,84869.0,84868.0,0.07375022]
[1741519462137,0.257,84869.0,84868.0,0.07375022]
[1741519462435,0.26196063,84869.0,84868.0,0.07375022]
[1741519463036,0.00496063,84869.0,84868.0,0.07375022]
[1741519463433,0.00496063,84873.0,84868.0,0.07375022]
[1741519464236,0.00496063,84880.0,84868.0,0.07375022]
[1741519464740,0.3608,84879.0,84868.0,0.07375022]
[1741519464937,0.3608,84879.0,84869.0,0.0657]
[1741519465435,0.00496063,84878.0,84869.0,0.0657]
[1741519465744,0.36576063,84878.0,84869.0,0.0657]
[1741519466039,0.00496063,84877.0,84869.0,0.0657]
[1741519466240,0.00496063,84877.0,84870.0,0.08216]
[1741519466640,0.00496063,84880.0,84870.0,0.08216]
[1741519467339,0.00496063,84880.0,84879.0,0.3608]
[1741519467642,0.00496063,84880.0,84879.0,0.44296]
[1741519469234,0.00496063,84881.0,84879.0,0.44296]
[1741519469439,0.00496063,84881.0,84880.0,0.3608]
[1741519469739,0.00496063,84881.0,84880.0,0.488]
[1741519470339,0.10384592,84882.0,84880.0,0.488]
[1741519470640,1e-08,84882.0,84880.0,0.638]
[1741519470839,0.17519405,84887.0,84880.0,0.638]
[1741519470840,0.13392411,84887.0,84880.0,0.488]
[1741519471043,0.13392411,84887.0,84884.0,0.3608]
[1741519471346,0.13392411,84887.0,84885.0,0.15066]
[1741519471532,0.13392411,84887.0,84885.0,0.30066]
[1741519471943,0.09266748,84887.0,84885.0,0.30066]
[1741519472240,0.05141085,84887.0,84885.0,0.30066]
[1741519472430,0.16376362,84892.0,84885.0,0.30066]
[1741519472635,0.16376362,84892.0,84891.0,0.3608]
[1741519472835,0.16376362,84892.0,84891.0,0.63152]
[1741519473140,0.16376362,84892.0,84891.0,0.78152]
[1741519473441,0.10508237,84901.0,84891.0,0.78152]
[1741519473632,0.00017668,84900.0,84892.0,0.0685]
[1741519474038,0.00017668,84900.0,84893.0,0.0634]
[1741519474740,0.00017668,84900.0,84898.0,0.3608]
[1741519474939,0.00017668,84900.0,84899.0,0.15042]
[1741519475339,0.00017668,84900.0,84899.0,0.31298635]
[1741519476047,0.36164,84924.0,84899.0,0.31298635]
[1741519476237,0.3608,84924.0,84917.0,0.3608]
[1741519476437,0.3608,84924.0,84918.0,0.21822]
[1741519476841,0.2420156,84925.0,84918.0,0.21822]
[1741519477045,0.10493391,84925.0,84918.0,0.21822]
[1741519477745,0.10493391,84925.0,84919.0,0.08212]
[1741519477932,0.068,84924.0,84919.0,0.08212]
[1741519478345,0.068,84924.0,84920.0,0.0636]
[1741519480743,0.00017668,84929.0,84920.0,0.0636]
[1741519483141,0.3608,84927.0,84920.0,0.0636]
[1741519483342,0.1322,84926.0,84920.0,0.0636]
[1741519483853,0.1322,84926.0,84919.0,0.08212]
[1741519484046,0.3608,84920.0,84914.0,0.0656]
[1741519484243,0.136,84919.0,84915.0,0.08208]
[1741519484644,0.136,84919.0,84916.0,0.0656]
[1741519485051,0.136,84919.0,84917.0,0.0634]
[1741519485546,0.136,84919.0,84918.0,0.0656]
[1741519487451,0.0673,84919.0,84918.0,0.0656]
[1741519487651,0.0673,84919.0,84918.0,0.1298]
[1741519487944,0.3608,84927.0,84918.0,0.1298]
[1741519488147,0.068,84926.0,84918.0,0.1298]
[1741519488350,0.00017668,84929.0,84918.0,0.1298]
[1741519492054,0.00017668,84929.0,84921.0,0.3608]
[1741519492346,0.00017668,84929.0,84922.0,0.21658]
[1741519500656,0.00017668,84929.0,84923.0,0.08204]
[1741519505565,0.00493029,84928.0,84922.0,0.1345]
[1741519505751,0.00493029,84928.0,84922.0,0.0688]
[1741519505947,0.1886,84927.0,84922.0,0.0688]
[1741519506356,0.00493029,84926.0,84922.0,0.0688]
[1741519506757,0.1268,84925.0,84922.0,0.0688]
[1741519506964,0.1268,84925.0,84921.0,0.28040533]
[1741519507158,0.00493029,84924.0,84921.0,0.28040533]
[1741519507554,0.12983029,84923.0,84921.0,0.28040533]
[1741519507754,0.3608,84922.0,84921.0,0.28040533]
[1741519508254,0.48963029,84922.0,84916.0,0.28040533]
[1741519508459,0.70873029,84922.0,84916.0,0.28040533]
[1741519508658,0.3608,84918.0,84916.0,0.07660533]
[1741519508859,0.0613,84917.0,84916.0,0.07660533]
[1741519509256,0.2113,84917.0,84916.0,0.07660533]
[1741519509767,0.4304,84917.0,84916.0,0.07660533]
[1741519510063,0.4304,84917.0,84911.0,0.3530451]
[1741519510261,0.08204,84916.0,84911.0,0.3530451]
[1741519510654,0.0613,84915.0,84911.0,0.3530451]
[1741519511057,0.08204,84914.0,84911.0,0.3530451]
[1741519511354,0.08204,84914.0,84912.0,0.0641]
[1741519511558,0.08698089,84914.0,84912.0,0.0641]
[1741519513067,0.15188089,84914.0,84912.0,0.0641]
[1741519513364,0.15188089,84914.0,84908.0,0.0673]
[1741519513663,0.15188089,84914.0,84909.0,0.0641]
[1741519515669,0.00494089,84914.0,84909.0,0.0641]
[1741519516756,0.08698089,84914.0,84902.0,0.08204]
[1741519516965,0.08698089,84914.0,84903.0,0.1268]
[1741519518667,0.09532387,84914.0,84903.0,0.1268]
[1741519519661,0.08698089,84914.0,84903.0,0.1268]
[1741519520370,0.08698089,84914.0,84903.0,0.0637]
[1741519523164,0.08698089,84914.0,84904.0,0.0672]
[1741519523362,0.80858089,84914.0,84904.0,0.0672]
[1741519523568,0.3608,84905.0,84903.0,0.0637]
[1741519523870,0.20874,84904.0,84894.0,0.0661]
[1741519524063,0.21368089,84904.0,84894.0,0.0661]
[1741519524259,0.21368089,84904.0,84895.0,0.0608]
[1741519524569,0.00494089,84903.0,84895.0,0.0608]
[1741519524961,0.1267,84902.0,84895.0,0.0608]
[1741519525568,0.00494089,84901.0,84895.0,0.0608]
[1741519525967,0.0664,84900.0,84895.0,0.0608]
[1741519526158,0.14674,84899.0,84896.0,0.0639]
[1741519526362,0.00494089,84898.0,84896.0,0.0639]
[1741519526564,0.06924089,84898.0,84897.0,0.062]
[1741519526760,0.00494089,84898.0,84897.0,0.062]
[1741519528066,0.13394089,84898.0,84897.0,0.062]
[1741519528271,0.49474089,84898.0,84897.0,0.062]
[1741519529073,0.49474089,84898.0,84897.0,0.1235]
[1741519529274,0.36574089,84898.0,84897.0,0.1235]
[1741519531662,0.00494089,84898.0,84897.0,0.1235]
[1741519531862,0.00494089,84903.0,84897.0,0.1235]
[1741519533377,0.00494089,84904.0,84897.0,0.1235]
[1741519535287,0.00494089,84904.0,84897.0,0.2055]
[1741519536875,0.00494089,84904.0,84897.0,0.1235]
[1741519537075,0.12684089,84903.0,84897.0,0.1235]
[1741519537775,0.00494089,84902.0,84897.0,0.1235]
[1741519537978,0.082,84901.0,84897.0,0.1235]
[1741519538179,0.0603,84900.0,84898.0,0.0654]
[1741519538565,0.0603,84900.0,84899.0,0.0631]
[1741519538872,0.06550696,84900.0,84899.0,0.0631]
[1741519539063,0.12640696,84900.0,84899.0,0.0631]
[1741519539664,0.06550696,84900.0,84899.0,0.0631]
[1741519540774,0.12640696,84900.0,84899.0,0.0631]
[1741519540978,0.13476956,84900.0,84899.0,0.0631]
[1741519541276,0.13476956,84900.0,84897.0,0.0615]
[1741519541481,0.3608,84898.0,84897.0,0.0615]
[1741519542077,0.37436956,84898.0,84897.0,0.0615]
[1741519542788,0.37436956,84898.0,84892.0,0.065]
[1741519543076,0.3608,84895.0,84891.0,0.00017668]
[1741519543281,0.2078,84894.0,84891.0,0.00017668]
[1741519543573,0.18856,84893.0,84891.0,0.00017668]
[1741519543973,0.13936956,84892.0,84891.0,0.00017668]
[1741519545671,0.86096956,84892.0,84891.0,0.00017668]
[1741519548076,0.85260696,84892.0,84891.0,0.00017668]
[1741519548972,0.84640715,84892.0,84891.0,1.667e-05]
[1741519549174,0.86610715,84892.0,84891.0,1.667e-05]
[1741519549370,0.78410715,84892.0,84891.0,1.667e-05]
[1741519550487,0.84950715,84892.0,84891.0,1.667e-05]
[1741519550783,0.84950715,84892.0,84886.0,0.1258]
[1741519550784,0.94678147,84892.0,84886.0,0.1258]
[1741519551087,0.48448147,84892.0,84886.0,0.1258]
[1741519551583,0.48448147,84892.0,84887.0,0.082]
[1741519551976,0.48448147,84892.0,84888.0,0.1297]
[1741519552576,0.082,84899.0,84888.0,0.1297]
[1741519552577,0.17511176,84894.0,84888.0,0.1297]
[1741519554885,0.0615,84893.0,84888.0,0.1297]
[1741519555479,0.1435,84893.0,84888.0,0.1297]
[1741519556183,0.3608,84891.0,84888.0,0.1297]
[1741519556381,0.0615,84890.0,84888.0,0.1297]
[1741519556575,0.1254,84890.0,84888.0,0.1297]
[1741519557289,0.1254,84890.0,84881.0,0.00017668]
[1741519557486,0.3608,84882.0,84881.0,0.00017668]
[1741519557792,0.4428,84882.0,84881.0,0.00017668]
[1741519559787,0.082,84882.0,84881.0,0.00017668]
[1741519560093,0.17511176,84885.0,84881.0,0.00017668]
[1741519560991,0.07361176,84885.0,84884.0,0.3608]
[1741519561886,0.07361176,84885.0,84881.0,0.12477668]
[1741519562482,0.3608,84883.0,84881.0,0.12477668]
[1741519562679,0.066,84882.0,84881.0,0.12477668]
[1741519562883,0.1315,84882.0,84881.0,0.12477668]
[1741519563385,0.13658708,84882.0,84881.0,0.12477668]
[1741519566986,0.13658708,84882.0,84881.0,0.00017668]
[1741519567185,0.13658708,84882.0,84870.0,0.1321]
[1741519567386,0.082,84881.0,84870.0,0.1321]
[1741519567788,0.12998708,84880.0,84870.0,0.1321]
[1741519568495,0.00508708,84879.0,84870.0,0.1321]
[1741519568689,0.00508708,84878.0,84870.0,0.1321]
[1741519568895,0.12898708,84878.0,84870.0,0.1321]
[1741519569295,0.00508708,84877.0,84870.0,0.1321]
[1741519569495,0.082,84876.0,84870.0,0.1321]
[1741519569697,0.0655,84875.0,84870.0,0.1321]
[1741519570191,0.00508708,84874.0,84870.0,0.1321]
[1741519570397,0.00508708,84873.0,84870.0,0.1321]
[1741519570596,0.07058708,84873.0,84870.0,0.1321]
[1741519570894,0.00508708,84872.0,84870.0,0.1321]
[1741519571088,0.082,84871.0,84870.0,0.1321]
[1741519571492,0.1475,84871.0,84870.0,0.1321]
[1741519571694,0.15258708,84871.0,84870.0,0.1321]
[1741519573197,0.00508708,84871.0,84870.0,0.1321]
[1741519573397,0.08704708,84871.0,84870.0,0.1321]
[1741519576901,0.09934327,84871.0,84870.0,0.1321]
[1741519577101,0.08704708,84871.0,84870.0,0.1321]
[1741519578893,0.21834708,84871.0,84870.0,0.1321]
[1741519580206,0.21834708,84871.0,84867.0,0.00017668]
[1741519580496,0.00508708,84870.0,84867.0,0.00017668]
[1741519580805,0.21326,84871.0,84867.0,0.00017668]
[1741519580806,0.00508708,84869.0,84867.0,0.00017668]
[1741519581097,0.00508708,84868.0,84867.0,0.00017668]
[1741519581593,0.13288708,84868.0,84867.0,0.00017668]
[1741519583004,0.13288708,84868.0,84858.0,0.0612]
[1741519583005,0.21484708,84868.0,84858.0,0.0612]
[1741519583303,0.3608,84859.0,84858.0,0.0612]
[1741519583506,0.44784708,84859.0,84858.0,0.0612]
[1741519584096,0.44276,84859.0,84858.0,0.0612]